fUSD/lending_fUSD_20250410
["ID","MTS","AMOUNT","RATE_DAILY","PERIOD"]
[357641239,1744263090844,-572.93105051,0.00039726,2]
[357641240,1744263090854,-600.37,0.00039726,2]
[357641241,1744263090864,-540.97,0.00039726,2]
[357641242,1744263090874,-500.0,0.00039726,2]
[357641243,1744263090884,-346.2,0.00039726,2]
[357641244,1744263090894,-500.0,0.00039726,2]
[357641245,1744263090903,-500.0,0.00039726,2]
[357641246,1744263090913,-500.0,0.00039726,2]
[357641247,1744263090922,-500.0,0.00039726,2]
[357641248,1744263090932,-500.0,0.00039726,2]
[357641249,1744263090942,-564.45,0.00039726,2]
[357641250,1744263090951,-639.34,0.00039726,2]
[357641251,1744263090961,-732.06,0.00039726,2]
[357641252,1744263090971,-1095.5,0.00039726,2]
[357641253,1744263090980,-500.0,0.00039726,2]
[357641254,1744263090990,-275.14173837,0.00039726,2]
[357641255,1744263091000,-680.52,0.00039726,2]
[357641256,1744263091010,-713.03,0.00039726,2]
[357641257,1744263091019,-500.0,0.00039726,2]
[357641258,1744263091029,-500.0,0.00039726,2]
[357641259,1744263091039,-500.0,0.00039726,2]
[357641260,1744263091048,-500.0,0.00039726,2]
[357641261,1744263091059,-500.0,0.00039726,2]
[357641262,1744263091068,-500.0,0.00039726,2]
[357641263,1744263091078,-953.15,0.00039726,2]
[357641264,1744263091088,-500.0,0.00039726,2]
[357641265,1744263091097,-500.0,0.00039726,2]
[357641266,1744263091107,-500.0,0.00039726,2]
[357641267,1744263091117,-733.83,0.00039726,2]
[357641268,1744263091127,-500.0,0.00039726,2]
[357641269,1744263091137,-500.0,0.00039726,2]
[357641270,1744263091146,-500.0,0.00039726,2]
[357641271,1744263091156,-303.11599537,0.00039726,2]
[357641272,1744263091166,-500.0,0.00039726,2]
[357641273,1744263091175,-500.0,0.00039726,2]
[357641274,1744263091185,-500.0,0.00039726,2]
[357641275,1744263091194,-224.9200746,0.00039726,2]
[357641276,1744263091204,-500.0,0.00039726,2]
[357641277,1744263091213,-500.0,0.00039726,2]
[357641278,1744263091223,-1006.39,0.00039726,2]
[357641279,1744263091232,-615.99697397,0.00039726,2]
[357641280,1744263091242,-500.0,0.00039726,2]
[357641281,1744263091251,-500.0,0.00039726,2]
[357641282,1744263091260,-500.0,0.00039726,2]
[357641283,1744263091270,-500.0,0.00039726,2]
[357641284,1744263091279,-773.01,0.00039726,2]
[357641285,1744263091289,-769.58,0.00039726,2]
[357641286,1744263091299,-1427.56,0.00039726,2]
[357641287,1744263091308,-500.0,0.00039726,2]
[357641288,1744263091317,-500.0,0.00039726,2]
[357641289,1744263091326,-527.31753868,0.00039726,2]
[357641290,1744263091336,-500.0,0.00039726,2]
[357641291,1744263091347,-541.16,0.00039726,2]
[357641292,1744263091356,-500.0,0.00039726,2]
[357641293,1744263091368,-495.53352471,0.00039726,2]
[357641294,1744263091379,-1299.27,0.00039726,2]
[357641295,1744263091389,-500.0,0.00039726,2]
[357641296,1744263091398,-500.0,0.00039726,2]
[357641297,1744263091409,-500.0,0.00039726,2]
[357641298,1744263091419,-708.54,0.00039726,2]
[357641299,1744263091428,-795.01,0.00039726,2]
[357641300,1744263091438,-500.0,0.00039726,2]
[357641301,1744263091448,-658.97,0.00039726,2]
[357641302,1744263091458,-993.37,0.00039726,2]
[357641303,1744263091469,-1632.03,0.00039726,2]
[357641304,1744263091478,-594.56,0.00039726,2]
[357641305,1744263091488,-500.0,0.00039726,2]
[357641306,1744263091497,-500.0,0.00039726,2]
[357641307,1744263091507,-578.26,0.00039726,2]
[357641308,1744263091516,-1083.25,0.00039726,2]
[357641309,1744263091526,-500.0,0.00039726,2]
[357641310,1744263091535,-151.0,0.00039726,14]
[357641311,1744263091545,-500.0,0.00039726,2]
[357641312,1744263091555,-964.94,0.00039726,2]
[357641313,1744263091564,-500.0,0.00039726,2]
[357641314,1744263091574,-1000.0,0.00039726,2]
[357641315,1744263091583,-500.0,0.00039726,2]
[357641316,1744263091618,-1105.1,0.00039726,2]
[357641317,1744263091627,-663.92,0.00039726,2]
[357641318,1744263091637,-854.96,0.00039726,2]
[357641319,1744263091646,-500.0,0.00039726,2]
[357641320,1744263091656,-523.00636703,0.00039726,2]
[357641321,1744263091665,-500.0,0.00039726,2]
[357641322,1744263091674,-937.5,0.00039726,2]
[357641323,1744263091684,-500.0,0.00039726,2]
[357641324,1744263091694,-613.76852703,0.00039726,2]
[357641325,1744263091703,-500.0,0.00039726,2]
[357641326,1744263091713,-500.0,0.00039726,2]
[357641327,1744263091722,-500.0,0.00039726,2]
[357641328,1744263091732,-782.72,0.00039726,2]
[357641329,1744263091741,-326.618833,0.00039726,14]
[357641330,1744263091751,-326.618833,0.00039726,14]
[357641331,1744263091760,-500.0,0.00039726,2]
[357641332,1744263091769,-203.98794439,0.00039726,2]
[357641333,1744263091778,-500.0,0.00039726,2]
[357641334,1744263091788,-500.0,0.00039726,2]
[357641335,1744263091798,-500.0,0.00039726,2]
[357641336,1744263091807,-500.0,0.00039726,2]
[357641337,1744263091817,-500.0,0.00039726,2]
[357641338,1744263091827,-740.93,0.00039726,2]
[357641339,1744263091837,-1260.52,0.00039726,2]
[357641340,1744263091847,-905.18,0.00039726,2]
[357641341,1744263091856,-500.0,0.00039726,2]
[357641342,1744263091865,-372.21427767,0.00039726,2]
[357641343,1744263091875,-500.0,0.00039726,2]
[357641344,1744263091885,-500.0,0.00039726,2]
[357641345,1744263091894,-1750.92,0.00039726,2]
[357641346,1744263092064,-699.82,0.00039726,2]
[357641347,1744263092104,-1065.92,0.00039726,2]
[357641348,1744263092113,-500.0,0.00039726,2]
[357641349,1744263092123,-553.41,0.00039726,2]
[357641350,1744263092133,-500.0,0.00039726,2]
[357641351,1744263092142,-279.98584793,0.00039726,2]
[357641352,1744263092151,-500.0,0.00039726,2]
[357641353,1744263092160,-500.0,0.00039726,2]
[357641354,1744263092170,-500.0,0.00039726,2]
[357641355,1744263092179,-2100.96,0.00039726,2]
[357641356,1744263092188,-500.0,0.00039726,2]
[357641357,1744263092197,-506.38,0.00039726,2]
[357641358,1744263092207,-500.0,0.00039726,2]
[357641359,1744263092216,-500.0,0.00039726,2]
[357641360,1744263092225,-699.01,0.00039726,2]
[357641361,1744263092234,-619.1,0.00039726,2]
[357641362,1744263092243,-618.83,0.00039726,2]
[357641363,1744263092253,-1260.45,0.00039726,2]
[357641364,1744263092262,-500.0,0.00039726,2]
[357641365,1744263092271,-500.0,0.00039726,2]
[357641366,1744263092280,-500.0,0.00039726,2]
[357641367,1744263092290,-151.0,0.00039726,14]
[357641368,1744263092300,-629.12,0.00039726,2]
[357641369,1744263092309,-500.0,0.00039726,2]
[357641370,1744263092317,-500.0,0.00039726,2]
[357641371,1744263092327,-901.87,0.00039726,2]
[357641372,1744263092335,-1535.2,0.00039726,2]
[357641373,1744263092344,-500.0,0.00039726,2]
[357641374,1744263092353,-2036.28,0.00039726,2]
[357641375,1744263092363,-500.0,0.00039726,2]
[357641376,1744263092374,-592.98,0.00039726,2]
[357641377,1744263092384,-1592.0,0.00039726,2]
[357641378,1744263092393,-547.28,0.00039726,2]
[357641379,1744263092402,-913.24,0.00039726,2]
[357641380,1744263092412,-522.51,0.00039726,2]
[357641381,1744263092421,-500.0,0.00039726,2]
[357641382,1744263092430,-500.0,0.00039726,2]
[357641383,1744263092439,-500.0,0.00039726,2]
[357641384,1744263092449,-1171.35,0.00039726,2]
[357641385,1744263092458,-500.0,0.00039726,2]
[357641386,1744263092467,-1033.06,0.00039726,2]
[357641387,1744263092475,-1595.19,0.00039726,2]
[357641388,1744263092485,-500.0,0.00039726,2]
[357641389,1744263092494,-1000.0,0.00039726,2]
[357641390,1744263092503,-500.0,0.00039726,2]
[357641391,1744263092512,-500.0,0.00039726,2]
[357641392,1744263092522,-500.0,0.00039726,2]
[357641393,1744263092532,-500.0,0.00039726,2]
[357641394,1744263092542,-500.0,0.00039726,2]
[357641395,1744263092551,-584.7,0.00039726,2]
[357641396,1744263092560,-1947.41,0.00039726,2]
[357641397,1744263092569,-500.0,0.00039726,2]
[357641398,1744263092579,-500.0,0.00039726,2]
[357641399,1744263092588,-500.0,0.00039726,2]
[357641400,1744263092597,-926.43,0.00039726,2]
[357641401,1744263092607,-500.0,0.00039726,2]
[357641402,1744263092616,-500.0,0.00039726,2]
[357641403,1744263092628,-626.53939098,0.00039726,2]
[357641404,1744263092639,-500.0,0.00039726,2]
[357641405,1744263092648,-185.64688599,0.00039726,2]
[357641406,1744263092657,-610.03,0.00039726,2]
[357641407,1744263092667,-243.20373283,0.00039726,2]
[357641408,1744263092676,-981.36,0.00039726,2]
[357641409,1744263092686,-500.0,0.00039726,2]
[357641410,1744263092695,-793.73,0.00039726,2]
[357641411,1744263092705,-319.212095,0.00039726,14]
[357641412,1744263092714,-550.40298676,0.00039726,2]
[357641413,1744263092724,-319.212095,0.00039726,14]
[357641414,1744263092733,-683.98,0.00039726,2]
[357641415,1744263092742,-727.92,0.00039726,2]
[357641416,1744263092752,-500.0,0.00039726,2]
[357641417,1744263092761,-151.0,0.00039726,14]
[357641418,1744263092771,-500.0,0.00039726,2]
[357641419,1744263092780,-573.05,0.00039726,2]
[357641420,1744263092790,-653.48,0.00039726,2]
[357641421,1744263092800,-500.0,0.00039726,2]
[357641422,1744263092809,-500.0,0.00039726,2]
[357641423,1744263092819,-151.0,0.00039726,14]
[357641424,1744263092829,-872.19,0.00039726,2]
[357641425,1744263092838,-151.0,0.00039726,14]
[357641426,1744263092847,-585.0,0.00039726,2]
[357641427,1744263092857,-500.0,0.00039726,2]
[357641428,1744263092867,-578.0,0.00039726,2]
[357641429,1744263092876,-1098.43,0.00039726,2]
[357641430,1744263092885,-557.08,0.00039726,2]
[357641431,1744263092895,-500.0,0.00039726,2]
[357641432,1744263092905,-500.0,0.00039726,2]
[357641433,1744263092914,-500.0,0.00039726,2]
[357641434,1744263092923,-775.81,0.00039726,2]
[357641435,1744263092933,-500.0,0.00039726,2]
[357641436,1744263092942,-500.0,0.00039726,2]
[357641437,1744263092952,-151.0,0.00039726,14]
[357641438,1744263092962,-500.0,0.00039726,2]
[357641439,1744263092971,-827.44,0.00039726,2]
[357641440,1744263092981,-500.0,0.00039726,2]
[357641441,1744263092990,-271.09360769,0.00039726,2]
[357641442,1744263093000,-2624.4,0.00039726,2]
[357641443,1744263093009,-500.0,0.00039726,2]
[357641444,1744263093019,-2889.02,0.00039726,2]
[357641445,1744263093029,-500.0,0.00039726,2]
[357641446,1744263093038,-500.0,0.00039726,2]
[357641447,1744263093049,-500.0,0.00039726,2]
[357641448,1744263093059,-595.49,0.00039726,2]
[357641449,1744263093069,-1057.22,0.00039726,2]
[357641450,1744263093079,-208.352474,0.00039726,14]
[357641451,1744263093090,-151.0,0.00039726,14]
[357641452,1744263093100,-208.352474,0.00039726,14]
[357641453,1744263093110,-547.12,0.00039726,2]
[357641454,1744263093120,-500.0,0.00039726,2]
[357641455,1744263093130,-1644.09,0.00039726,2]
[357641456,1744263093139,-535.22,0.00039726,2]
[357641457,1744263093149,-500.0,0.00039726,2]
[357641458,1744263093159,-727.43,0.00039726,2]
[357641459,1744263093168,-799.77,0.00039726,2]
[357641460,1744263093178,-500.0,0.00039726,2]
[357641461,1744263093188,-959.4,0.00039726,2]
[357641462,1744263093198,-1648.43,0.00039726,2]
[357641463,1744263093208,-738.51,0.00039726,2]
[357641464,1744263093218,-608.9,0.00039726,2]
[357641465,1744263093228,-500.0,0.00039726,2]
[357641466,1744263093238,-699.08,0.00039726,2]
[357641467,1744263093247,-885.56,0.00039726,2]
[357641468,1744263093258,-624.37,0.00039726,2]
[357641469,1744263093268,-500.0,0.00039726,2]
[357641470,1744263093278,-1033.25,0.00039726,2]
[357641471,1744263093288,-2525.7,0.00039726,2]
[357641472,1744263093297,-500.0,0.00039726,2]
[357641473,1744263093307,-1305.17,0.00039726,2]
[357641474,1744263093316,-151.0,0.00039726,14]
[357641475,1744263093326,-500.0,0.00039726,2]
[357641476,1744263093336,-500.0,0.00039726,2]
[357641477,1744263093346,-571.02,0.00039726,2]
[357641478,1744263093356,-500.0,0.00039726,2]
[357641479,1744263093369,-151.0,0.00039726,14]
[357641480,1744263093378,-917.16,0.00039726,2]
[357641481,1744263093387,-912.29,0.00039726,2]
[357641482,1744263093397,-500.0,0.00039726,2]
[357641483,1744263093407,-552.15,0.00039726,2]
[357641484,1744263093417,-500.0,0.00039726,2]
[357641485,1744263093427,-500.0,0.00039726,2]
[357641486,1744263093436,-500.0,0.00039726,2]
[357641487,1744263093448,-500.0,0.00039726,2]
[357641488,1744263093459,-508.79,0.00039726,2]
[357641489,1744263093469,-500.03,0.00039726,2]
[357641490,1744263093479,-1408.64,0.00039726,2]
[357641491,1744263093489,-660.288913,0.00039726,14]
[357641492,1744263093498,-660.288913,0.00039726,14]
[357641493,1744263093508,-1556.73,0.00039726,2]
[357641494,1744263093518,-600.64047491,0.00039726,2]
[357641495,1744263093527,-500.0,0.00039726,2]
[357641496,1744263093536,-1635.81,0.00039726,2]
[357641497,1744263093546,-933.27,0.00039726,2]
[357641498,1744263093556,-1187.18,0.00039726,2]
[357641499,1744263093566,-833.81,0.00039726,2]
[357641500,1744263093576,-985.06,0.00039726,2]
[357641501,1744263093585,-282.98812893,0.00039726,2]
[357641502,1744263093595,-2294.31,0.00039726,2]
[357641503,1744263093604,-2356.85,0.00039726,2]
[357641504,1744263093614,-1743.374356,0.00039726,2]
[357641505,1744263093624,-986.77,0.00039726,2]
[357641506,1744263093633,-632.62024381,0.00039726,2]
[357641507,1744263093643,-640.13722234,0.00039726,2]
[357641508,1744263093653,-2875.93,0.00039726,2]
[357641509,1744263093663,-500.0,0.00039726,2]
[357641510,1744263093672,-1214.83,0.00039726,2]
[357641511,1744263093682,-1153.71,0.00039726,2]
[357641512,1744263093692,-180.186855,0.00039726,2]
[357641513,1744263093702,-957.89,0.00039726,2]
[357641514,1744263093711,-500.0,0.00039726,2]
[357641515,1744263093721,-424.322939,0.00039726,14]
[357641516,1744263093731,-4529.73,0.00039726,2]
[357641517,1744263093740,-2077.03,0.00039726,2]
[357641518,1744263093750,-500.0,0.00039726,2]
[357641519,1744263093759,-424.322939,0.00039726,14]
[357641520,1744263093769,-2584.34,0.00039726,2]
[357641521,1744263093778,-500.0,0.00039726,2]
[357641522,1744263093788,-870.1,0.00039726,2]
[357641523,1744263093798,-946.03,0.00039726,2]
[357641524,1744263093807,-1925.56,0.00039726,2]
[357641525,1744263093817,-1077.99,0.00039726,2]
[357641526,1744263093827,-500.0,0.00039726,2]
[357641527,1744263093837,-511.65,0.00039726,2]
[357641528,1744263093846,-4644.2,0.00039726,2]
[357641529,1744263093857,-633.69,0.00039726,2]
[357641530,1744263093866,-500.0,0.00039726,2]
[357641531,1744263093876,-1112.85,0.00039726,2]
[357641532,1744263093886,-1029.45,0.00039726,2]
[357641533,1744263093896,-500.0,0.00039726,2]
[357641534,1744263093906,-647.69,0.00039726,2]
[357641535,1744263093916,-3585.681999,0.00039726,2]
[357641536,1744263093926,-500.0,0.00039726,2]
[357641537,1744263093935,-909.21,0.00039726,2]
[357641538,1744263093945,-2403.73,0.00039726,2]
[357641539,1744263093955,-525.24437383,0.00039726,2]
[357641540,1744263093965,-1120.09,0.00039726,2]
[357641541,1744263093975,-1686.73,0.00039726,2]
[357641542,1744263093985,-500.0,0.00039726,2]
[357641543,1744263093994,-879.89,0.00039726,2]
[357641544,1744263094004,-874.26,0.00039726,2]
[357641545,1744263094014,-808.95,0.00039726,2]
[357641546,1744263094023,-832.56,0.00039726,2]
[357641547,1744263094033,-1157.43,0.00039726,2]
[357641548,1744263094043,-581.124785,0.00039726,2]
[357641549,1744263094054,-718.2,0.00039726,2]
[357641550,1744263094064,-500.0,0.00039726,2]
[357641551,1744263094074,-1407.72,0.00039726,2]
[357641552,1744263094085,-1039.49,0.00039726,2]
[357641553,1744263094094,-505.32942111,0.00039726,2]
[357641554,1744263094104,-7215.56,0.00039726,2]
[357641555,1744263094114,-500.0,0.00039726,2]
[357641556,1744263094124,-575.22,0.00039726,2]
[357641557,1744263094133,-3881.0,0.00039726,2]
[357641558,1744263094143,-1613.58,0.00039726,2]
[357641559,1744263094153,-534.96104419,0.00039726,2]
[357641560,1744263094162,-772.7,0.00039726,2]
[357641561,1744263094172,-898.25,0.00039726,2]
[357641562,1744263094182,-500.0,0.00039726,2]
[357641563,1744263094191,-500.0,0.00039726,2]
[357641564,1744263094201,-1979.36,0.00039726,2]
[357641565,1744263094210,-8078.39,0.00039726,2]
[357641566,1744263094220,-42424.6,0.00039726,2]
[357641567,1744263094230,-690.89,0.00039726,2]
[357641568,1744263094240,-500.0,0.00039726,2]
[357641569,1744263094249,-1112.76,0.00039726,2]
[357641570,1744263094259,-1039.69,0.00039726,2]
[357641571,1744263094268,-500.0,0.00039726,2]
[357641572,1744263094278,-1185.95,0.00039726,2]
[357641573,1744263094288,-634.68,0.00039726,2]
[357641574,1744263094298,-518.49,0.00039726,2]
[357641575,1744263094308,-500.0,0.00039726,2]
[357641576,1744263094317,-1287.64,0.00039726,2]
[357641577,1744263094327,-965.31,0.00039726,2]
[357641578,1744263094337,-910.06,0.00039726,2]
[357641579,1744263094347,-1004.75,0.00039726,2]
[357641580,1744263094356,-1961.21,0.00039726,2]
[357641581,1744263094368,-500.0,0.00039726,2]
[357641582,1744263094379,-500.0,0.00039726,2]
[357641583,1744263094389,-1538.53,0.00039726,2]
[357641584,1744263094399,-599.76,0.00039726,2]
[357641585,1744263094410,-500.0,0.00039726,2]
[357641586,1744263094420,-1367.6,0.00039726,2]
[357641587,1744263094431,-500.0,0.00039726,2]
[357641588,1744263094442,-877.44,0.00039726,2]
[357641589,1744263094452,-991.6,0.00039726,2]
[357641590,1744263094462,-2578.25,0.00039726,2]
[357641591,1744263094472,-693.73,0.00039726,2]
[357641592,1744263094482,-500.0,0.00039726,2]
[357641593,1744263094491,-629.13,0.00039726,2]
[357641594,1744263094501,-500.0,0.00039726,2]
[357641595,1744263094510,-685.43,0.00039726,2]
[357641596,1744263094519,-500.0,0.00039726,2]
[357641597,1744263094529,-1216.37,0.00039726,2]
[357641598,1744263094539,-500.0,0.00039726,2]
[357641599,1744263094548,-500.0,0.00039726,2]
[357641600,1744263094558,-1214.66,0.00039726,2]
[357641601,1744263094567,-500.0,0.00039726,2]
[357641602,1744263094576,-4565.3,0.00039726,2]
[357641603,1744263094585,-547.98769852,0.00039726,2]
[357641604,1744263094594,-1048.07,0.00039726,2]
[357641605,1744263094604,-500.0,0.00039726,2]
[357641606,1744263094614,-1039.16,0.00039726,2]
[357641607,1744263094624,-1216.68,0.00039726,2]
[357641608,1744263094633,-1205.91,0.00039726,2]
[357641609,1744263094643,-500.0,0.00039726,2]
[357641610,1744263094652,-2916.32,0.00039726,2]
[357641611,1744263094662,-4891.3,0.00039726,2]
[357641612,1744263094671,-2357.14,0.00039726,2]
[357641613,1744263094681,-632.73,0.00039726,2]
[357641614,1744263094690,-1190.59,0.00039726,2]
[357641615,1744263094699,-500.0,0.00039726,2]
[357641616,1744263094709,-757.09,0.00039726,2]
[357641617,1744263094718,-603.06,0.00039726,2]
[357641618,1744263094728,-812.34,0.00039726,2]
[357641619,1744263094738,-573.66,0.00039726,2]
[357641620,1744263094748,-23785.76,0.00039726,2]
[357641621,1744263094758,-500.0,0.00039726,2]
[357641622,1744263094768,-2083.77,0.00039726,2]
[357641623,1744263094777,-1281.13,0.00039726,2]
[357641624,1744263094787,-500.0,0.00039726,2]
[357641625,1744263094796,-1005.53,0.00039726,2]
[357641626,1744263094806,-745.91,0.00039726,2]
[357641627,1744263094815,-2143.43,0.00039726,2]
[357641628,1744263094824,-1089.01,0.00039726,2]
[357641629,1744263094834,-500.0,0.00039726,2]
[357641630,1744263094843,-1159.32,0.00039726,2]
[357641631,1744263094853,-573.78,0.00039726,2]
[357641632,1744263094862,-500.0,0.00039726,2]
[357641633,1744263094871,-500.0,0.00039726,2]
[357641634,1744263094880,-646.02,0.00039726,2]
[357641635,1744263094890,-500.0,0.00039726,2]
[357641636,1744263094899,-566.91,0.00039726,2]
[357641637,1744263094909,-1218.11,0.00039726,2]
[357641638,1744263094918,-500.0,0.00039726,2]
[357641639,1744263094928,-500.0,0.00039726,2]
[357641640,1744263094938,-29122.28,0.00039726,2]
[357641641,1744263094947,-500.0,0.00039726,2]
[357641642,1744263094957,-500.0,0.00039726,2]
[357641643,1744263094966,-865.9,0.00039726,2]
[357641644,1744263094976,-516.84,0.00039726,2]
[357641645,1744263094986,-500.0,0.00039726,2]
[357641646,1744263094995,-695.78,0.00039726,2]
[357641647,1744263095004,-537.67462654,0.00039726,2]
[357641648,1744263095014,-819.97,0.00039726,2]
[357641649,1744263095023,-2739.29,0.00039726,2]
[357641650,1744263095033,-1018.51,0.00039726,2]
[357641651,1744263095043,-500.0,0.00039726,2]
[357641652,1744263095053,-575.63,0.00039726,2]
[357641653,1744263095063,-500.0,0.00039726,2]
[357641654,1744263095072,-500.0,0.00039726,2]
[357641655,1744263095081,-1378.7,0.00039726,2]
[357641656,1744263095091,-1133.4,0.00039726,2]
[357641657,1744263095100,-500.0,0.00039726,2]
[357641658,1744263095110,-500.0,0.00039726,2]
[357641659,1744263095119,-832.63,0.00039726,2]
[357641660,1744263095130,-21395.75,0.00039726,2]
[357641661,1744263095139,-500.0,0.00039726,2]
[357641662,1744263095148,-500.0,0.00039726,2]
[357641663,1744263095158,-500.0,0.00039726,2]
[357641664,1744263095168,-500.0,0.00039726,2]
[357641665,1744263095177,-500.0,0.00039726,2]
[357641666,1744263095368,-500.0,0.00039726,2]
[357641667,1744263095379,-2087.42,0.00039726,2]
[357641668,1744263095388,-1170.86,0.00039726,2]
[357641669,1744263095398,-569.95464996,0.00039726,2]
[357641670,1744263095408,-3014.44,0.00039726,2]
[357641671,1744263095417,-500.0,0.00039726,2]
[357641672,1744263095426,-167266.55,0.00039726,2]
[357641673,1744263095436,-1973.41,0.00039726,2]
[357641674,1744263095445,-2641.61,0.00039726,2]
[357641675,1744263095455,-500.0,0.00039726,2]
[357641676,1744263095464,-514.89,0.00039726,2]
[357641677,1744263095473,-500.0,0.00039726,2]
[357641678,1744263095482,-573.09,0.00039726,2]
[357641679,1744263095492,-4651.38,0.00039726,2]
[357641680,1744263095501,-500.0,0.00039726,2]
[357641681,1744263095511,-1570.69,0.00039726,2]
[357641682,1744263095520,-500.0,0.00039726,2]
[357641683,1744263095529,-507.04890116,0.00039726,2]
[357641684,1744263095540,-500.0,0.00039726,2]
[357641685,1744263095549,-500.0,0.00039726,2]
[357641686,1744263095558,-518.89189329,0.00039726,2]
[357641687,1744263095567,-646.27,0.00039726,2]
[357641688,1744263095577,-1967.15,0.00039726,2]
[357641689,1744263095587,-500.0,0.00039726,2]
[357641690,1744263095596,-973.2,0.00039726,2]
[357641691,1744263095605,-500.0,0.00039726,2]
[357641692,1744263095614,-161.957797,0.00039726,2]
[357641693,1744263095624,-1133.28,0.00039726,2]
[357641694,1744263095633,-500.0,0.00039726,2]
[357641695,1744263095643,-552.73,0.00039726,2]
[357641696,1744263095652,-188.18075905,0.00039726,2]
[357641697,1744263095661,-1290.575287,0.00039726,2]
[357641698,1744263095671,-535.78,0.00039726,2]
[357641699,1744263095680,-151.0,0.00039726,14]
[357641700,1744263095690,-1438.14,0.00039726,2]
[357641701,1744263095699,-500.0,0.00039726,2]
[357641702,1744263095709,-987.76,0.00039726,2]
[357641703,1744263095718,-878.74,0.00039726,2]
[357641704,1744263095727,-151.0,0.00039726,14]
[357641705,1744263095737,-243.29141123,0.00039726,2]
[357641706,1744263095746,-300.0,0.00039753,5]
[357641707,1744263095755,-170497.17939786,0.000398,2]
[357641708,1744263095764,-150.0,0.00039999,3]
[357641709,1744263095773,-150.0,0.00039999,3]
[357641710,1744263095783,-336064.59443593,0.0004,2]
[357641711,1744263095792,-2883.14871151,0.0004,2]
[357641712,1744263095801,-321.96722833,0.0004,14]
[357641713,1744263095811,-157.87,0.0004,2]
[357641714,1744263095820,-517.62024905,0.0004,2]
[357641715,1744263095829,-200.0,0.0004,2]
[357641716,1744263095838,-12300.0,0.0004,3]
[357641717,1744263095848,-500.59955919,0.0004,4]
[357641718,1744263095857,-500.0,0.0004,2]
[357641719,1744263095867,-500.0,0.0004,2]
[357641720,1744263095876,-500.0,0.0004,2]
[357641721,1744263095885,-500.0,0.0004,2]
[357641722,1744263095894,-1057.12,0.0004,2]
[357641723,1744263095904,-500.0,0.0004,2]
[357641724,1744263095913,-530.85694606,0.0004,2]
[357641725,1744263095923,-648.87,0.0004,2]
[357641726,1744263095932,-485.51025962,0.0004,2]
[357641727,1744263095941,-946.59,0.0004,2]
[357641728,1744263095951,-500.0,0.0004,2]
[357641729,1744263095960,-534.85,0.0004,2]
[357641730,1744263095969,-500.0,0.0004,2]
[357641731,1744263095978,-641.6,0.0004,2]
[357641732,1744263095987,-500.0,0.0004,2]
[357641733,1744263095997,-500.0,0.0004,2]
[357641734,1744263096005,-500.0,0.0004,2]
[357641735,1744263096014,-705.12,0.0004,2]
[357641736,1744263096023,-500.0,0.0004,2]
[357641737,1744263096033,-500.0,0.0004,2]
[357641738,1744263096043,-500.0,0.0004,2]